bitfinex/quotes_BTCUSD_20240911
["timestamp","ask_amount","ask_price","bid_price","bid_amount"]
[1726055891540,0.5717117,56862.0,56861.0,0.003636]
[1726055891541,0.5967117,56862.0,56861.0,0.003636]
[1726055891750,0.5847117,56862.0,56861.0,0.002636]
[1726055891967,0.5987117,56862.0,56861.0,0.003636]
[1726055892195,0.5857117,56862.0,56861.0,0.002636]
[1726055892400,0.5997117,56862.0,56861.0,0.003636]
[1726055892616,0.54399621,56862.0,56861.0,0.003636]
[1726055898029,0.53255087,56862.0,56861.0,0.003636]
[1726055898700,0.028,56862.0,56861.0,0.266136]
[1726055898945,0.056801,56862.0,56861.0,0.266136]
[1726055899163,0.000818,56867.0,56862.0,0.02643187]
[1726055899397,0.000818,56873.0,56869.0,0.2925]
[1726055899614,0.000818,56873.0,56872.0,0.46230969]
[1726055899832,0.000818,56873.0,56872.0,0.63824987]
[1726055900276,0.000818,56885.0,56872.0,0.63824987]
[1726055900277,0.000818,56885.0,56878.0,0.03]
[1726055900518,0.000818,56885.0,56882.0,0.002]
[1726055900733,0.000818,56885.0,56883.0,0.17945516]
[1726055900950,0.000818,56885.0,56884.0,0.2745]
[1726055901423,0.029619,56885.0,56884.0,0.2745]
[1726055902071,0.030619,56885.0,56884.0,0.2745]
[1726055903468,0.029619,56885.0,56884.0,0.2745]
[1726055904991,0.029619,56885.0,56871.0,0.2719]
[1726055904992,0.028801,56875.0,56871.0,0.2719]
[1726055906769,0.028801,56875.0,56871.0,0.2809]
[1726055907013,0.028801,56875.0,56871.0,0.2899]
[1726055907691,0.028801,56874.0,56871.0,0.2899]
[1726055908583,0.028801,56874.0,56871.0,0.2809]
[1726055909078,0.028801,56874.0,56871.0,0.2909]
[1726055909468,0.028801,56874.0,56871.0,0.2819]
[1726055910111,0.028801,56875.0,56871.0,0.2819]
[1726055910359,0.028801,56874.0,56871.0,0.2919]
[1726055910589,0.01161897,56874.0,56871.0,0.2919]
[1726055910804,0.00356813,56874.0,56871.0,0.2819]
[1726055911226,0.028801,56874.0,56871.0,0.2819]
[1726055911438,0.028801,56874.0,56871.0,0.2909]
[1726055912760,0.028801,56874.0,56871.0,0.2819]
[1726055913000,0.028801,56874.0,56871.0,0.2919]
[1726055916219,0.000818,56885.0,56875.0,0.2772]
[1726055916220,0.028801,56883.0,56875.0,0.2772]
[1726055916469,0.028801,56883.0,56878.0,0.19980969]
[1726055917620,0.028801,56883.0,56879.0,0.00351555]
[1726055918122,0.028801,56883.0,56878.0,0.19980969]
[1726055918351,0.028801,56883.0,56875.0,0.2772]
[1726055919272,0.028801,56883.0,56876.0,0.0035157]
[1726055919540,0.028801,56883.0,56875.0,0.2772]
[1726055920448,0.028801,56883.0,56876.0,0.00351571]
[1726055922318,0.02523287,56874.0,56871.0,0.2758]
[1726055922561,0.70376536,56882.0,56871.0,0.2758]
[1726055922562,0.028801,56873.0,56871.0,0.2758]
[1726055923770,0.028801,56873.0,56871.0,0.2868]
[1726055924974,0.028801,56873.0,56871.0,0.2988]
[1726055925948,0.028801,56872.0,56871.0,0.023]
[1726055926204,0.24623225,56872.0,56871.0,0.023]
[1726055926735,0.24623225,56872.0,56871.0,0.012]
[1726055927722,0.028801,56862.0,56861.0,0.001636]
[1726055929205,0.028801,56862.0,56861.0,0.017636]
[1726055937149,0.028801,56862.0,56861.0,0.012636]
[1726055939237,0.21743125,56872.0,56861.0,0.012636]
[1726055939238,0.028801,56863.0,56861.0,0.012636]
[1726055939463,0.00356813,56862.0,56861.0,0.012636]
[1726055939682,0.028801,56863.0,56861.0,0.012636]
[1726055940381,0.028801,56863.0,56862.0,0.1187]
[1726055940861,0.028801,56863.0,56862.0,0.2659]
[1726055942322,0.028801,56863.0,56862.0,0.2729]
[1726055942537,0.001,56863.0,56862.0,0.2729]
[1726055942740,0.028801,56864.0,56862.0,0.27641673]
[1726055942952,0.00356813,56864.0,56862.0,0.2729]
[1726055943177,0.001,56863.0,56862.0,0.2799]
[1726055943617,0.001,56863.0,56862.0,0.2729]
[1726055943834,0.001,56863.0,56862.0,0.2789]
[1726055944317,0.001,56863.0,56862.0,0.2729]
[1726055944554,0.000818,56873.0,56862.0,0.1472]
[1726055944555,0.028801,56870.0,56862.0,0.1472]
[1726055944759,0.00356813,56869.0,56865.0,0.1224]
[1726055944971,0.028801,56872.0,56865.0,0.1224]
[1726055945379,0.000818,56873.0,56865.0,0.1224]
[1726055945380,0.00356813,56867.0,56865.0,0.1224]
[1726055945801,0.028801,56872.0,56865.0,0.1224]
[1726055946001,0.00356813,56869.0,56865.0,0.1224]
[1726055946217,0.028801,56871.0,56865.0,0.1224]
[1726055946639,0.031801,56872.0,56865.0,0.29834018]
[1726055946853,0.00356813,56870.0,56865.0,0.29834018]
[1726055947089,0.02823287,56872.0,56865.0,0.29834018]
[1726055947090,0.00356813,56867.0,56865.0,0.29834018]
[1726055948225,0.00356813,56867.0,56865.0,0.30434018]
[1726055948443,0.00356813,56871.0,56865.0,0.30434018]
[1726055948689,0.00356813,56867.0,56865.0,0.29834018]
[1726055948908,0.00356813,56867.0,56865.0,0.30634018]
[1726055949350,0.000818,56873.0,56871.0,0.061199]
[1726055949586,0.000818,56885.0,56873.0,0.061199]
[1726055949807,0.000818,56885.0,56879.0,0.002]
[1726055950040,0.000818,56885.0,56877.0,0.03]
[1726055950041,0.000818,56885.0,56884.0,0.46660969]
[1726055950252,0.000818,56885.0,56884.0,0.64254987]
[1726055951537,0.000818,56885.0,56884.0,0.65354987]
[1726055951965,0.000818,56885.0,56884.0,0.64254987]
[1726055952198,0.000818,56885.0,56884.0,0.65654987]
[1726055952613,0.000818,56885.0,56884.0,0.66954987]
[1726055953228,0.000818,56885.0,56884.0,0.68354987]
[1726055953694,0.000818,56885.0,56884.0,0.66954987]
[1726055953860,0.000818,56885.0,56884.0,0.68254987]
[1726055954274,0.000818,56885.0,56884.0,0.48274018]
[1726055954506,0.000818,56885.0,56884.0,0.44274018]
[1726055954729,0.000818,56885.0,56884.0,0.45574018]
[1726055954957,0.000818,56885.0,56884.0,0.46674018]
[1726055960166,0.00438613,56885.0,56884.0,0.024]
[1726055960399,0.38392869,56885.0,56884.0,0.024]
[1726055960619,0.029619,56885.0,56884.0,0.024]
[1726055961252,0.029619,56885.0,56874.0,0.1253]
[1726055961893,0.00356813,56877.0,56874.0,0.1253]
[1726055962725,0.00356813,56877.0,56874.0,0.1263]
[1726055962934,0.00356813,56877.0,56874.0,0.1253]
[1726055963135,0.00356813,56877.0,56870.0,0.2833]
[1726055963136,0.028801,56877.0,56870.0,0.2833]
[1726055963352,0.028801,56877.0,56870.0,0.45924018]
[1726055963353,0.00356813,56875.0,56870.0,0.45924018]
[1726055963767,0.00356813,56875.0,56874.0,0.001]
[1726055964415,0.00356813,56875.0,56870.0,0.45924018]
[1726055964642,0.00356813,56875.0,56870.0,0.46124018]
[1726055965081,0.00356813,56875.0,56874.0,0.002]
[1726055966030,0.00356813,56875.0,56874.0,0.003634]
[1726055966937,0.00356813,56875.0,56874.0,0.001634]
[1726055977033,0.00356813,56876.0,56874.0,0.001634]
[1726055977255,0.00356813,56875.0,56874.0,0.001634]
[1726055985623,0.00456813,56875.0,56874.0,0.009634]
[1726055986473,0.00456813,56875.0,56874.0,0.016634]
[1726055989482,0.029801,56875.0,56874.0,0.016634]
[1726055992108,0.001,56875.0,56874.0,0.48147418]
[1726055992334,0.001,56875.0,56874.0,0.48347418]
[1726055993314,0.001,56875.0,56874.0,0.48147418]
[1726055995108,0.001,56875.0,56874.0,0.48347418]
[1726055995531,0.001,56875.0,56874.0,0.53591428]
[1726055996009,0.001,56875.0,56874.0,0.48347418]
[1726055996639,0.001,56875.0,56874.0,0.59215268]
[1726055997674,0.001,56875.0,56874.0,0.84557106]
[1726055997917,0.000817,56884.0,56877.0,0.002]
[1726055998100,0.000817,56884.0,56878.0,0.4516555]
[1726055998346,0.000817,56884.0,56879.0,0.1239]
[1726055998559,0.000817,56884.0,56878.0,0.3277555]
[1726055998560,0.000817,56884.0,56881.0,0.1239]
[1726055998766,0.000817,56884.0,56882.0,0.17594018]
[1726056000404,0.000817,56884.0,56882.0,0.18294018]
[1726056001338,0.000817,56884.0,56882.0,0.007]
[1726056002353,0.000817,56884.0,56882.0,0.014]
[1726056008573,0.028801,56883.0,56882.0,0.014]
[1726056008791,0.055201,56883.0,56882.0,0.014]
[1726056009462,0.055201,56883.0,56882.0,0.007]
[1726056009891,0.055201,56883.0,56882.0,0.015]
[1726056010337,0.028801,56882.0,56874.0,0.001634]
[1726056010764,0.028801,56881.0,56874.0,0.001634]
[1726056011259,0.028801,56879.0,56874.0,0.001634]
[1726056011471,0.028801,56875.0,56874.0,0.001634]
[1726056013140,0.028801,56875.0,56874.0,0.007634]
[1726056014399,0.055101,56875.0,56874.0,0.007634]
[1726056014648,0.055101,56875.0,56874.0,0.013634]
[1726056014884,0.055101,56875.0,56874.0,0.007634]
[1726056015157,0.055101,56875.0,56874.0,0.011634]
[1726056015370,0.055101,56875.0,56874.0,0.009634]
[1726056015598,0.055101,56875.0,56874.0,0.005634]
[1726056015827,0.055101,56875.0,56874.0,0.002634]
[1726056016304,0.055101,56875.0,56874.0,0.003634]
[1726056016811,0.055101,56875.0,56874.0,0.002634]
[1726056017053,0.055101,56875.0,56874.0,0.001634]
[1726056017289,0.09818609,56875.0,56874.0,0.001634]
[1726056018310,0.07188609,56875.0,56874.0,0.001634]
[1726056018992,0.028801,56875.0,56874.0,0.001634]
[1726056019891,0.184401,56875.0,56874.0,0.001634]
[1726056021232,0.185401,56875.0,56874.0,0.001634]
[1726056021992,0.028801,56875.0,56874.0,0.001634]
[1726056022219,0.029801,56875.0,56874.0,0.001634]
[1726056022449,0.028801,56875.0,56874.0,0.001634]
[1726056024389,0.029801,56875.0,56874.0,0.001634]
[1726056027021,0.029801,56875.0,56874.0,0.151534]
[1726056027022,0.00456813,56875.0,56874.0,0.151534]
[1726056027242,0.029801,56875.0,56874.0,0.151534]
[1726056028104,0.029801,56875.0,56874.0,0.152534]
[1726056028313,0.028801,56875.0,56874.0,0.152534]
[1726056028532,0.028801,56875.0,56874.0,0.153534]
[1726056028974,0.028801,56875.0,56874.0,0.155534]
[1726056031430,0.028801,56875.0,56874.0,0.005634]
[1726056032102,0.05429207,56875.0,56874.0,0.005634]
[1726056032316,0.05429207,56875.0,56874.0,0.001634]
[1726056032540,0.23023225,56875.0,56874.0,0.001634]
[1726056032773,0.25753225,56875.0,56874.0,0.001634]
[1726056033863,0.25653225,56875.0,56874.0,0.001634]
[1726056034301,0.25753225,56875.0,56874.0,0.001634]
[1726056036917,0.25953225,56875.0,56874.0,0.001634]
[1726056037136,0.25753225,56875.0,56874.0,0.001634]
[1726056037833,0.20574118,56875.0,56874.0,0.001634]
[1726056041440,0.30574118,56875.0,56874.0,0.001634]
[1726056041882,0.33404118,56875.0,56874.0,0.001634]
[1726056043055,0.38927597,56875.0,56874.0,0.001634]
[1726056043524,0.91674797,56875.0,56874.0,0.001634]
[1726056043836,0.028801,56863.0,56862.0,0.000678]
[1726056044067,0.20474118,56863.0,56862.0,0.000678]
[1726056046005,0.20574118,56863.0,56862.0,0.000678]
[1726056046735,0.20574118,56863.0,56862.0,0.003678]
[1726056046980,0.25005671,56863.0,56862.0,0.003678]
[1726056047211,0.24905671,56863.0,56862.0,0.000678]
[1726056047499,0.25705671,56863.0,56862.0,0.001678]
[1726056047746,0.26705671,56863.0,56862.0,0.004314]
[1726056047999,0.24905671,56863.0,56862.0,0.002314]
[1726056048249,0.25905671,56863.0,56862.0,0.003314]
[1726056048509,0.25605671,56863.0,56862.0,0.003314]
[1726056048768,0.26605671,56863.0,56862.0,0.004314]
[1726056049216,0.045801,56863.0,56862.0,0.161314]
[1726056049481,0.045801,56863.0,56862.0,0.286914]
[1726056049956,0.02056813,56863.0,56862.0,0.286914]
[1726056050414,0.01056813,56863.0,56862.0,0.285914]
[1726056050870,0.00856813,56863.0,56862.0,0.284914]
[1726056051094,0.01156813,56863.0,56862.0,0.284914]
[1726056051345,0.036801,56863.0,56862.0,0.284914]
[1726056051573,0.033801,56863.0,56862.0,0.284914]
[1726056052044,0.028801,56863.0,56862.0,0.285914]
[1726056052503,0.028801,56863.0,56862.0,0.286914]
[1726056053620,0.00356813,56863.0,56862.0,0.286914]
[1726056060377,0.028801,56863.0,56862.0,0.286914]
[1726056061070,0.00356813,56863.0,56862.0,0.286914]
[1726056061697,0.00356813,56863.0,56862.0,0.285914]
[1726056062775,0.04367221,56863.0,56862.0,0.127914]
[1726056063050,0.04367221,56863.0,56862.0,0.002314]
[1726056063051,0.028801,56863.0,56862.0,0.002314]
[1726056063277,0.20474118,56863.0,56862.0,0.002314]
[1726056063968,0.20674118,56863.0,56862.0,0.002314]
[1726056064423,0.25576819,56863.0,56862.0,0.003314]
[1726056064864,0.25076819,56863.0,56862.0,0.002314]
[1726056065105,0.24876819,56863.0,56862.0,0.002314]
[1726056065360,0.20474118,56863.0,56862.0,0.002314]
[1726056065636,0.20974118,56863.0,56862.0,0.003314]
[1726056066279,0.40966808,56863.0,56862.0,0.003314]
[1726056066489,0.41166808,56863.0,56862.0,0.004314]
[1726056066917,0.40466808,56863.0,56862.0,0.002314]
[1726056067165,0.45327425,56863.0,56862.0,0.003314]
[1726056067787,0.45627425,56863.0,56862.0,0.003314]
[1726056068002,0.44827425,56863.0,56862.0,0.002314]
[1726056068497,0.68302598,56863.0,56862.0,0.002314]
[1726056068711,0.83567612,56863.0,56862.0,0.002314]
[1726056068934,1.04286219,56863.0,56862.0,0.002314]
[1726056069154,1.39458419,56863.0,56862.0,0.002314]
[1726056069385,1.33860898,56863.0,56862.0,0.002314]
[1726056069639,1.44390926,56863.0,56862.0,0.002314]
[1726056069854,1.82563126,56863.0,56862.0,0.002314]
[1726056070283,1.88563126,56863.0,56862.0,0.002314]
[1726056071168,1.14318726,56863.0,56862.0,0.002314]
[1726056071403,1.11685167,56863.0,56862.0,0.002314]
[1726056071609,0.94999067,56863.0,56862.0,0.004314]
[1726056071826,1.12085167,56863.0,56862.0,0.003314]
[1726056072057,1.09385167,56863.0,56862.0,0.004314]
[1726056072315,1.09585167,56863.0,56862.0,0.004314]
[1726056072533,1.15535167,56863.0,56862.0,0.004314]
[1726056072748,1.12535167,56863.0,56862.0,0.004314]
[1726056072973,1.15335167,56863.0,56862.0,0.003314]
[1726056073193,0.6733845,56863.0,56862.0,0.003314]
[1726056073461,0.57141981,56863.0,56862.0,0.004314]
[1726056073692,0.51616808,56863.0,56862.0,0.004314]
[1726056074329,0.41616808,56863.0,56862.0,0.004314]
[1726056074544,0.040301,56863.0,56862.0,0.004314]
[1726056074760,0.040301,56863.0,56862.0,0.276514]
[1726056075001,0.01506813,56863.0,56862.0,0.276514]
[1726056075218,0.012,56863.0,56862.0,0.276514]
[1726056075444,0.007,56863.0,56862.0,0.275514]
[1726056076139,0.00306813,56864.0,56863.0,0.2722]
[1726056076780,0.028301,56865.0,56864.0,0.1217]
[1726056076998,0.028301,56871.0,56865.0,0.1505]
[1726056077216,0.000818,56874.0,56868.0,0.1217]
[1726056077217,0.028301,56873.0,56868.0,0.1217]
[1726056077436,0.00306813,56871.0,56869.0,0.1505]
[1726056077650,0.00306813,56871.0,56870.0,0.1239]
[1726056078516,0.00306813,56871.0,56870.0,0.27451628]
[1726056078773,0.00306813,56871.0,56870.0,0.271]
[1726056080133,0.00306813,56873.0,56870.0,0.271]
[1726056080371,0.00306813,56873.0,56871.0,0.1233]
[1726056080587,0.00306813,56873.0,56872.0,0.1516]
[1726056080809,0.00306813,56873.0,56872.0,0.2749]
[1726056081717,0.00406813,56873.0,56872.0,0.2749]
[1726056081931,0.00306813,56873.0,56872.0,0.2749]
[1726056083232,0.00406813,56873.0,56872.0,0.2819]
[1726056083663,0.00406813,56873.0,56872.0,0.2889]
[1726056084795,0.029301,56873.0,56872.0,0.1373]
[1726056088311,0.05230559,56873.0,56872.0,0.014]
[1726056091615,0.029301,56873.0,56872.0,0.014]
[1726056095858,0.04089796,56873.0,56872.0,0.014]
[1726056101072,0.029301,56873.0,56872.0,0.014]
[1726056103120,0.00406813,56873.0,56872.0,0.2925165]
[1726056103336,0.00406813,56873.0,56872.0,0.29251611]
[1726056104218,0.00406813,56873.0,56872.0,0.289]
[1726056111142,0.00488613,56873.0,56872.0,0.289]
[1726056114687,0.001818,56873.0,56872.0,0.46494018]
[1726056117844,0.001818,56873.0,56872.0,0.289]
[1726056118122,0.030119,56873.0,56872.0,0.014]
[1726056118442,0.05320539,56873.0,56872.0,0.014]
[1726056119225,0.030119,56873.0,56872.0,0.014]
[1726056119474,0.056519,56873.0,56872.0,0.014]
[1726056120709,0.056519,56873.0,56872.0,0.007]
[1726056120710,0.029119,56873.0,56872.0,0.007]
[1726056120950,0.036119,56873.0,56872.0,0.001]
[1726056121187,0.037119,56873.0,56872.0,0.001]
[1726056121430,0.06294948,56873.0,56864.0,0.1221]
[1726056121702,0.06894948,56873.0,56872.0,0.001]
[1726056121954,0.41798608,56873.0,56872.0,0.002]
[1726056122403,0.41798608,56873.0,56872.0,0.001]
[1726056122622,0.41198608,56873.0,56872.0,0.001]
[1726056122849,0.41798608,56873.0,56872.0,0.001]
[1726056123111,0.63701058,56873.0,56872.0,0.001]
[1726056123373,0.84267034,56873.0,56872.0,0.001]
[1726056123591,0.86900023,56873.0,56872.0,0.001]
[1726056123804,0.86200023,56873.0,56864.0,0.001]
[1726056124045,0.2546279,56865.0,56864.0,0.001]
[1726056124277,0.58706808,56865.0,56864.0,0.001]
[1726056124538,0.68706808,56865.0,56863.0,0.001636]
[1726056124790,0.20424118,56864.0,56863.0,0.001636]
[1726056125017,0.27822003,56864.0,56863.0,0.001636]
[1726056126162,0.28522003,56864.0,56863.0,0.002636]
[1726056126428,0.035301,56864.0,56863.0,0.002636]
[1726056127329,0.028301,56864.0,56863.0,0.001636]
[1726056127755,0.038301,56864.0,56863.0,0.002636]
[1726056127986,0.0737581,56864.0,56863.0,0.002636]
[1726056128205,0.0637581,56864.0,56863.0,0.001636]
[1726056128407,0.0737581,56864.0,56863.0,0.001636]
[1726056129050,0.0737581,56864.0,56863.0,0.002636]
[1726056129051,0.0907581,56864.0,56863.0,0.002636]
[1726056129293,0.0991581,56864.0,56863.0,0.002636]
[1726056129507,0.1081581,56864.0,56863.0,0.002636]
[1726056129751,0.0817581,56864.0,56863.0,0.002636]
[1726056130380,0.0727581,56864.0,56863.0,0.001636]
[1726056130594,0.24869828,56864.0,56863.0,0.001636]
[1726056130803,0.25769828,56864.0,56863.0,0.002636]
[1726056131019,0.31885568,56864.0,56863.0,0.002636]
[1726056131225,0.0817581,56864.0,56863.0,0.128136]
[1726056132687,0.046301,56864.0,56863.0,0.128136]
[1726056136595,0.046301,56864.0,56863.0,0.002636]
[1726056137973,0.22224118,56864.0,56863.0,0.002636]
[1726056138429,0.37984118,56864.0,56863.0,0.002636]
[1726056138678,0.39444118,56864.0,56863.0,0.002636]
[1726056139154,0.48258819,56864.0,56863.0,0.002636]
[1726056139386,0.48058819,56864.0,56863.0,0.002636]
[1726056140347,0.70944619,56864.0,56863.0,0.002636]
[1726056141648,1.60043601,56864.0,56863.0,0.002636]
[1726056141887,1.60243601,56864.0,56863.0,0.002636]
[1726056142126,1.65515643,56864.0,56863.0,0.002636]
[1726056142366,1.60243601,56864.0,56863.0,0.002636]
[1726056142621,1.60243601,56864.0,56862.0,0.002314]
[1726056142622,0.999606,56863.0,56862.0,0.002314]
[1726056142851,1.47471573,56863.0,56862.0,0.002314]
[1726056143993,1.48271573,56863.0,56862.0,0.003314]
[1726056144229,1.13899373,56863.0,56862.0,0.004314]
[1726056145421,1.49071573,56863.0,56862.0,0.004314]
[1726056146118,1.13899373,56863.0,56862.0,0.004314]
[1726056146812,1.49071573,56863.0,56862.0,0.004314]
[1726056147515,1.13899373,56863.0,56862.0,0.004314]
[1726056147752,0.58141073,56863.0,56862.0,0.004314]
[1726056147986,0.55141073,56863.0,56862.0,0.004314]
[1726056148690,0.54941073,56863.0,56862.0,0.004314]
[1726056148918,0.72527173,56863.0,56862.0,0.004314]
[1726056149646,0.78727173,56863.0,56862.0,0.004314]
[1726056150379,0.72727173,56863.0,56862.0,0.004314]
[1726056150866,1.13899373,56863.0,56862.0,0.004314]
[1726056152416,1.19423645,56863.0,56862.0,0.004314]
[1726056152676,0.66665345,56863.0,56862.0,0.004314]
[1726056152968,0.4904839,56863.0,56862.0,0.004314]
[1726056154057,0.48908374,56863.0,56862.0,0.004314]
[1726056155835,0.37408374,56863.0,56862.0,0.004314]
[1726056156064,0.09814356,56863.0,56862.0,0.236814]
[1726056157018,0.04290084,56863.0,56862.0,0.236814]
[1726056157665,0.016,56863.0,56862.0,0.24033112]
[1726056157878,0.00306813,56868.0,56863.0,0.2387]
[1726056158097,0.00306813,56868.0,56865.0,0.2387]
[1726056158312,0.00306813,56868.0,56867.0,0.2387]
[1726056158937,0.00306813,56868.0,56867.0,0.2487]
[1726056159147,0.00306813,56868.0,56867.0,0.2454]
[1726056159388,0.00906813,56868.0,56867.0,0.2454]
[1726056160420,0.006,56868.0,56867.0,0.2454]
[1726056160651,0.00306813,56868.0,56867.0,0.2454]
[1726056160852,0.00306813,56868.0,56867.0,0.2474]
[1726056161059,0.00806813,56868.0,56867.0,0.2474]
[1726056161274,0.00306813,56868.0,56867.0,0.2474]
[1726056161696,0.00388613,56868.0,56867.0,0.2504]
[1726056162855,0.02771884,56868.0,56867.0,0.2504]
[1726056166682,0.05048341,56868.0,56867.0,0.2504]
[1726056166904,0.05048341,56868.0,56867.0,0.1261]
[1726056167141,0.22642359,56868.0,56867.0,0.005]
[1726056167347,0.23758059,56868.0,56867.0,0.005]
[1726056168856,0.23758059,56868.0,56862.0,0.093914]
[1726056169074,0.1999269,56863.0,56862.0,0.093914]
[1726056169295,0.37586708,56863.0,56862.0,0.093914]
[1726056169485,0.40276792,56863.0,56862.0,0.093914]
[1726056170132,0.40276792,56863.0,56862.0,0.002314]
[1726056171010,0.41076792,56863.0,56862.0,0.003314]
[1726056171227,0.41576792,56863.0,56862.0,0.004314]
[1726056171445,0.46316203,56863.0,56862.0,0.004314]
[1726056173356,0.46398003,56863.0,56862.0,0.004314]
[1726056174434,0.73984103,56863.0,56862.0,0.004314]
[1726056174912,1.63723692,56863.0,56862.0,0.004314]
[1726056175137,0.23477084,56860.0,56859.0,0.001636]
[1726056175357,0.42963561,56858.0,56854.0,0.001636]
[1726056175563,0.75820714,56858.0,56854.0,0.001636]
[1726056175799,1.08032879,56858.0,56854.0,0.001636]
[1726056176041,1.61131947,56858.0,56854.0,0.001636]
[1726056176508,1.61331947,56858.0,56854.0,0.001636]
[1726056176933,1.26156647,56858.0,56854.0,0.001636]
[1726056177149,1.3121971,56858.0,56854.0,0.001636]
[1726056177364,1.3121971,56858.0,56857.0,0.002636]
[1726056177365,0.69193747,56858.0,56857.0,0.002636]
[1726056177806,0.67893747,56858.0,56857.0,0.001636]
[1726056178027,0.69793747,56858.0,56857.0,0.003636]
[1726056178493,0.67893747,56858.0,56857.0,0.001636]
[1726056178706,0.69293747,56858.0,56857.0,0.002636]
[1726056178914,0.68493747,56858.0,56857.0,0.002636]
[1726056179850,0.69629115,56858.0,56857.0,0.002636]
[1726056180063,1.27092015,56858.0,56857.0,0.001636]
[1726056180493,1.28492015,56858.0,56857.0,0.002636]
[1726056180704,1.27092015,56858.0,56857.0,0.001636]
[1726056180942,0.94516715,56858.0,56857.0,0.003636]
[1726056181407,1.28492015,56858.0,56857.0,0.002636]
[1726056181618,1.28692015,56858.0,56857.0,0.002636]
[1726056181845,1.30092015,56858.0,56857.0,0.003636]
[1726056182318,0.5421216,56858.0,56857.0,0.209536]
[1726056183182,0.5281216,56858.0,56857.0,0.208536]
[1726056183411,0.5141216,56858.0,56857.0,0.207536]
[1726056183635,0.58053376,56858.0,56857.0,0.208536]
[1726056183851,0.59453376,56858.0,56857.0,0.209536]
[1726056184070,0.56853376,56858.0,56857.0,0.207536]
[1726056184281,0.57653376,56858.0,56857.0,0.208536]
[1726056184520,0.58453376,56858.0,56857.0,0.209536]
[1726056184746,0.58453376,56858.0,56857.0,0.208536]
[1726056184994,0.57653376,56858.0,56857.0,0.207536]
[1726056185210,1.19532016,56858.0,56857.0,0.001636]
[1726056185423,0.80822776,56858.0,56857.0,0.001636]
[1726056185643,0.81622776,56858.0,56857.0,0.002636]
[1726056185865,1.51973376,56858.0,56857.0,0.002636]
[1726056186101,1.51973376,56858.0,56854.0,0.001636]
[1726056186102,0.58655884,56855.0,56854.0,0.001636]
[1726056186320,0.75651274,56852.0,56848.0,0.001636]
[1726056186538,1.03245292,56852.0,56848.0,0.001636]
[1726056187414,0.30284102,56852.0,56848.0,0.001636]
[1726056187633,0.50276792,56852.0,56848.0,0.001636]
[1726056187855,0.58215743,56852.0,56851.0,0.0034801]
[1726056188068,0.59215743,56852.0,56851.0,0.0044801]
[1726056188540,0.76805243,56852.0,56851.0,0.0044801]
[1726056189529,0.7956142,56852.0,56851.0,0.0044801]
[1726056190161,1.1334146,56852.0,56851.0,0.0044801]
[1726056190389,0.7816246,56852.0,56851.0,0.0044801]
[1726056190854,0.7796246,56852.0,56851.0,0.0044801]
[1726056191085,1.1314146,56852.0,56851.0,0.0044801]
[1726056191349,0.7796246,56852.0,56851.0,0.0044801]
[1726056194172,1.1564146,56852.0,56851.0,0.0044801]
[1726056195579,1.1864146,56852.0,56851.0,0.0044801]
[1726056196033,1.1844146,56852.0,56851.0,0.0044801]
[1726056196263,1.1844146,56852.0,56848.0,0.001636]
[1726056196264,0.64461384,56849.0,56848.0,0.001636]
[1726056196495,0.02690084,56841.0,56840.0,0.0828]
[1726056196726,0.02690084,56841.0,56840.0,0.1921]
[1726056197901,0.02690084,56841.0,56840.0,0.1931]
[1726056198126,0.1999269,56846.0,56840.0,0.1931]
[1726056198127,0.02690084,56844.0,56841.0,0.1942]
[1726056198351,0.1999269,56854.0,56840.0,0.001]
[1726056198352,0.02690084,56841.0,56840.0,0.001]
[1726056198797,0.02690084,56841.0,56840.0,0.1854]
[1726056199737,0.02690084,56841.0,56840.0,0.1844]
[1726056199977,0.02690084,56841.0,56840.0,0.18470487]
[1726056201790,0.02690084,56841.0,56840.0,0.18570487]
[1726056202014,0.22682774,56841.0,56840.0,0.18570487]
[1726056202228,0.24951051,56841.0,56840.0,0.18570487]
[1726056207388,0.22682774,56841.0,56840.0,0.18570487]
[1726056207611,0.02690084,56841.0,56840.0,0.18570487]
[1726056208503,0.02690084,56841.0,56840.0,0.18558398]
[1726056209442,0.02690084,56841.0,56840.0,0.18721998]
[1726056212357,0.02690084,56841.0,56840.0,0.20721998]
[1726056213210,0.22552379,56841.0,56840.0,0.20721998]
[1726056213429,0.42545069,56841.0,56840.0,0.20721998]
[1726056213868,0.42545069,56841.0,56840.0,0.10401998]
[1726056214084,0.52545069,56841.0,56840.0,0.023636]
[1726056214302,0.52545069,56841.0,56840.0,0.003636]
[1726056215646,0.53673689,56841.0,56840.0,0.003636]
[1726056216076,0.55973689,56841.0,56840.0,0.003636]
[1726056217030,0.56173689,56841.0,56840.0,0.003636]
[1726056217512,0.55973689,56841.0,56840.0,0.003636]
[1726056217757,0.20283284,56840.0,56832.0,0.0821]
[1726056217997,0.02690084,56833.0,56832.0,0.0821]
[1726056218222,0.40276792,56833.0,56832.0,0.0821]
[1726056218444,0.50276792,56833.0,56832.0,0.0821]
[1726056218663,0.55304471,56833.0,56832.0,0.0821]
[1726056218888,0.55304471,56833.0,56829.0,0.0024801]
[1726056218889,0.02690084,56830.0,56829.0,0.0024801]
[1726056220265,0.02790084,56830.0,56829.0,0.0074801]
[1726056220478,0.02690084,56830.0,56829.0,0.0054801]
[1726056220697,0.08220531,56830.0,56829.0,0.0054801]
[1726056221592,0.51922979,56830.0,56829.0,0.0054801]
[1726056221806,0.55807239,56830.0,56829.0,0.0084801]
[1726056222026,0.73403539,56830.0,56829.0,0.0084801]
[1726056222301,1.08596139,56830.0,56829.0,0.0084801]
[1726056222523,0.55807239,56830.0,56829.0,0.0054801]
[1726056222756,1.08596139,56830.0,56829.0,0.0074801]
[1726056223009,0.28213221,56830.0,56829.0,0.0074801]
[1726056223218,0.02690084,56830.0,56829.0,0.1924801]
[1726056223439,0.02990084,56830.0,56829.0,0.1924801]
[1726056223674,0.03390084,56830.0,56829.0,0.1924801]
[1726056223889,0.004,56830.0,56829.0,0.1894801]
[1726056224112,0.1999269,56832.0,56830.0,0.1855]